{"text_format":"1","workbook":"xlsx","n_sheets":3,"sheets":["Instructions","Manager Input form","Working"],"not_rendered":{"charts":0,"images":1,"macros":0,"external_links":0,"defined_names":0,"comments":0,"pivot_tables":0},"unopened":[],"bounds":{"document_bytes":16777216,"sheet_cells":100000,"rows_first":2000,"rows_last":500,"rows_between":2000,"halvings":0,"cell_chars":16384,"cell_head_chars":4096},"cells_cut":0,"cells_raw":0,"read":"whole","date_system":"1900"}

{"sheet":"Instructions","index":0,"n_rows":24,"n_cols":3,"rows_kept":24,"cut":false,"hidden":false,"merged":[[4,0,4,2]]}
["Instructions for applying for Overtime"]
["Follow this link for the instructions "]
["Instructions for submitting an overtime claim form.docx"]
[]
["Key"]
["Elements","Description","Itrent Codes"]
["Additional Basic","Additional hours worked up to 37 hours per week paid at plain time.","020"]
["Basic Pay Hours (Supply Teacher)","Hours worked by Supply Teachers","002"]
["Call Out Overtime Double","Hours worked when called out on standby which fall on an EDC fixed Public Holiday","048"]
["Call Out Overtime Time and Half","Hours worked when called out on standby.","047"]
["Casual Hours ","Hours worked on a supply basis for Local Government Workers.","021"]
["Leisure Officer Upgrade","EDLC only - To be used when working in higher grade",339]
["Out of Hours Non Contractual","Applicable when working additional basic hours outwith the core working hours of the Council of Monday – Sunday: 7.00am – 9.00pm (inclusive).","022"]
["Overtime Double","Overtime hours worked on any of the 6 fixed public holidays.","015"]
["Overtime Time and Half","Overtime worked above 37 hours per week - paid at time and a half.","003"]
["Public Holiday","For hours worked on a Public Holiday where this falls on your usual working day, but your contract does not require you to work on Public Holidays. Paid as additional single time to enable you to receive double time paid.","025"]
["Sleeping in Allowance","Sleeping night allowance (if applicable in Residential Social Care settings) - paid at SG Living Wage","353"]
["Standby Allowance","Where employees are on a standby rota - paid at the National Scottish Joint Council rates.","337"]
["Additional Hours Job Share and Part Time","Teaching only - Additional hours worked up to 35 hours per week paid at plain time.","081"]
["Home Tuition Fees","Teaching only- paid as per Procedure Manuaul 2/39","371"]
["Positive Alter","Education Sessional Tutors only","419"]
["School Board Fee","Parent Council Clerk fees paid as per Procedure Manaual  3/46","390"]
["Supported Study","Teaching only- paid as per Procedure Manuaul 2/39","374"]
["Twilight Class Fee","Instrumental Music Only - evening and weekends","385"]

{"sheet":"Manager Input form","index":1,"n_rows":322,"n_cols":17,"rows_kept":322,"cut":false,"hidden":false,"merged":[[1,2,1,4],[2,2,2,4],[3,2,3,4],[5,2,5,5],[5,9,5,11],[6,9,6,11],[6,2,6,5],[7,0,7,1],[6,0,6,1],[5,0,5,1]]}
["Manager Input Overtime Claim Form"]
["Service "]
["Manager Name"]
["Date Commencing"]
[]
["Managers Signature:",null,null,null,null,null,null,"Authorised by:"]
["Date:",null,null,null,null,null,null,"Date:"]
["Employee Claim Details"]
["Employee Name","Job Title","Payroll Number","Employee/ Assignment Number","Cost Centre","Contracted Hours\n","Grade","Location Number   \n(If different from primary/substantive location)","SCP","Grade \n(If different from substantive)","Overtime Description","iTrent Ref","Date Worked","Amount","Hours/ Units","Standby Type","Comments"]
[null,null,null,null,null,null,null,null,null,null,null,{"$f":"IFERROR(VLOOKUP(K10,Working!A:B,2,FALSE), \"\")","v":""}]
[null,null,null,null,null,null,null,null,null,null,null,{"$f":"IFERROR(VLOOKUP(K11,Working!A:B,2,FALSE), \"\")","v":""}]
[null,null,null,null,null,null,null,null,null,null,null,{"$f":"IFERROR(VLOOKUP(K12,Working!A:B,2,FALSE), \"\")","v":""}]
[null,null,null,null,null,null,null,null,null,null,null,{"$f":"IFERROR(VLOOKUP(K13,Working!A:B,2,FALSE), \"\")","v":""}]
[null,null,null,null,null,null,null,null,null,null,null,{"$f":"IFERROR(VLOOKUP(K14,Working!A:B,2,FALSE), \"\")","v":""}]
[null,null,null,null,null,null,null,null,null,null,null,{"$f":"IFERROR(VLOOKUP(K15,Working!A:B,2,FALSE), \"\")","v":""}]
[null,null,null,null,null,null,null,null,null,null,null,{"$f":"IFERROR(VLOOKUP(K16,Working!A:B,2,FALSE), \"\")","v":""}]
[null,null,null,null,null,null,null,null,null,null,null,{"$f":"IFERROR(VLOOKUP(K17,Working!A:B,2,FALSE), \"\")","v":""}]
[]
[null,null,null,null,null,null,null,null,null,null,null,{"$f":"IFERROR(VLOOKUP(K19,Working!A:B,2,FALSE), \"\")","v":""}]
[null,null,null,null,null,null,null,null,null,null,null,{"$f":"IFERROR(VLOOKUP(K20,Working!A:B,2,FALSE), \"\")","v":""}]
[null,null,null,null,null,null,null,null,null,null,null,{"$f":"IFERROR(VLOOKUP(K21,Working!A:B,2,FALSE), \"\")","v":""}]
[null,null,null,null,null,null,null,null,null,null,null,{"$f":"IFERROR(VLOOKUP(K22,Working!A:B,2,FALSE), \"\")","v":""}]
[null,null,null,null,null,null,null,null,null,null,null,{"$f":"IFERROR(VLOOKUP(K23,Working!A:B,2,FALSE), \"\")","v":""}]
[null,null,null,null,null,null,null,null,null,null,null,{"$f":"IFERROR(VLOOKUP(K24,Working!A:B,2,FALSE), \"\")","v":""}]
[null,null,null,null,null,null,null,null,null,null,null,{"$f":"IFERROR(VLOOKUP(K25,Working!A:B,2,FALSE), \"\")","v":""}]
[null,null,null,null,null,null,null,null,null,null,null,{"$f":"IFERROR(VLOOKUP(K26,Working!A:B,2,FALSE), \"\")","v":""}]
[null,null,null,null,null,null,null,null,null,null,null,{"$f":"IFERROR(VLOOKUP(K27,Working!A:B,2,FALSE), \"\")","v":""}]
[null,null,null,null,null,null,null,null,null,null,null,{"$f":"IFERROR(VLOOKUP(K28,Working!A:B,2,FALSE), \"\")","v":""}]
[null,null,null,null,null,null,null,null,null,null,null,{"$f":"IFERROR(VLOOKUP(K29,Working!A:B,2,FALSE), \"\")","v":""}]
[null,null,null,null,null,null,null,null,null,null,null,{"$f":"IFERROR(VLOOKUP(K30,Working!A:B,2,FALSE), \"\")","v":""}]
[null,null,null,null,null,null,null,null,null,null,null,{"$f":"IFERROR(VLOOKUP(K31,Working!A:B,2,FALSE), \"\")","v":""}]
[null,null,null,null,null,null,null,null,null,null,null,{"$f":"IFERROR(VLOOKUP(K32,Working!A:B,2,FALSE), \"\")","v":""}]
[null,null,null,null,null,null,null,null,null,null,null,{"$f":"IFERROR(VLOOKUP(K33,Working!A:B,2,FALSE), \"\")","v":""}]
[null,null,null,null,null,null,null,null,null,null,null,{"$f":"IFERROR(VLOOKUP(K34,Working!A:B,2,FALSE), \"\")","v":""}]
[null,null,null,null,null,null,null,null,null,null,null,{"$f":"IFERROR(VLOOKUP(K35,Working!A:B,2,FALSE), \"\")","v":""}]
[null,null,null,null,null,null,null,null,null,null,null,{"$f":"IFERROR(VLOOKUP(K36,Working!A:B,2,FALSE), \"\")","v":""}]
[null,null,null,null,null,null,null,null,null,null,null,{"$f":"IFERROR(VLOOKUP(K37,Working!A:B,2,FALSE), \"\")","v":""}]
[null,null,null,null,null,null,null,null,null,null,null,{"$f":"IFERROR(VLOOKUP(K38,Working!A:B,2,FALSE), \"\")","v":""}]
[null,null,null,null,null,null,null,null,null,null,null,{"$f":"IFERROR(VLOOKUP(K39,Working!A:B,2,FALSE), \"\")","v":""}]
[null,null,null,null,null,null,null,null,null,null,null,{"$f":"IFERROR(VLOOKUP(K40,Working!A:B,2,FALSE), \"\")","v":""}]
[null,null,null,null,null,null,null,null,null,null,null,{"$f":"IFERROR(VLOOKUP(K41,Working!A:B,2,FALSE), \"\")","v":""}]
[null,null,null,null,null,null,null,null,null,null,null,{"$f":"IFERROR(VLOOKUP(K42,Working!A:B,2,FALSE), \"\")","v":""}]
[null,null,null,null,null,null,null,null,null,null,null,{"$f":"IFERROR(VLOOKUP(K43,Working!A:B,2,FALSE), \"\")","v":""}]
[null,null,null,null,null,null,null,null,null,null,null,{"$f":"IFERROR(VLOOKUP(K44,Working!A:B,2,FALSE), \"\")","v":""}]
[null,null,null,null,null,null,null,null,null,null,null,{"$f":"IFERROR(VLOOKUP(K45,Working!A:B,2,FALSE), \"\")","v":""}]
[null,null,null,null,null,null,null,null,null,null,null,{"$f":"IFERROR(VLOOKUP(K46,Working!A:B,2,FALSE), \"\")","v":""}]
[null,null,null,null,null,null,null,null,null,null,null,{"$f":"IFERROR(VLOOKUP(K47,Working!A:B,2,FALSE), \"\")","v":""}]
[null,null,null,null,null,null,null,null,null,null,null,{"$f":"IFERROR(VLOOKUP(K48,Working!A:B,2,FALSE), \"\")","v":""}]
[null,null,null,null,null,null,null,null,null,null,null,{"$f":"IFERROR(VLOOKUP(K49,Working!A:B,2,FALSE), \"\")","v":""}]
[null,null,null,null,null,null,null,null,null,null,null,{"$f":"IFERROR(VLOOKUP(K50,Working!A:B,2,FALSE), \"\")","v":""}]
[null,null,null,null,null,null,null,null,null,null,null,{"$f":"IFERROR(VLOOKUP(K51,Working!A:B,2,FALSE), \"\")","v":""}]
[null,null,null,null,null,null,null,null,null,null,null,{"$f":"IFERROR(VLOOKUP(K52,Working!A:B,2,FALSE), \"\")","v":""}]
[null,null,null,null,null,null,null,null,null,null,null,{"$f":"IFERROR(VLOOKUP(K53,Working!A:B,2,FALSE), \"\")","v":""}]
[null,null,null,null,null,null,null,null,null,null,null,{"$f":"IFERROR(VLOOKUP(K54,Working!A:B,2,FALSE), \"\")","v":""}]
[null,null,null,null,null,null,null,null,null,null,null,{"$f":"IFERROR(VLOOKUP(K55,Working!A:B,2,FALSE), \"\")","v":""}]
[null,null,null,null,null,null,null,null,null,null,null,{"$f":"IFERROR(VLOOKUP(K56,Working!A:B,2,FALSE), \"\")","v":""}]
[null,null,null,null,null,null,null,null,null,null,null,{"$f":"IFERROR(VLOOKUP(K57,Working!A:B,2,FALSE), \"\")","v":""}]
[null,null,null,null,null,null,null,null,null,null,null,{"$f":"IFERROR(VLOOKUP(K58,Working!A:B,2,FALSE), \"\")","v":""}]
[null,null,null,null,null,null,null,null,null,null,null,{"$f":"IFERROR(VLOOKUP(K59,Working!A:B,2,FALSE), \"\")","v":""}]
[null,null,null,null,null,null,null,null,null,null,null,{"$f":"IFERROR(VLOOKUP(K60,Working!A:B,2,FALSE), \"\")","v":""}]
[null,null,null,null,null,null,null,null,null,null,null,{"$f":"IFERROR(VLOOKUP(K61,Working!A:B,2,FALSE), \"\")","v":""}]
[null,null,null,null,null,null,null,null,null,null,null,{"$f":"IFERROR(VLOOKUP(K62,Working!A:B,2,FALSE), \"\")","v":""}]
[null,null,null,null,null,null,null,null,null,null,null,{"$f":"IFERROR(VLOOKUP(K63,Working!A:B,2,FALSE), \"\")","v":""}]
[null,null,null,null,null,null,null,null,null,null,null,{"$f":"IFERROR(VLOOKUP(K64,Working!A:B,2,FALSE), \"\")","v":""}]
[null,null,null,null,null,null,null,null,null,null,null,{"$f":"IFERROR(VLOOKUP(K65,Working!A:B,2,FALSE), \"\")","v":""}]
[null,null,null,null,null,null,null,null,null,null,null,{"$f":"IFERROR(VLOOKUP(K66,Working!A:B,2,FALSE), \"\")","v":""}]
[null,null,null,null,null,null,null,null,null,null,null,{"$f":"IFERROR(VLOOKUP(K67,Working!A:B,2,FALSE), \"\")","v":""}]
[null,null,null,null,null,null,null,null,null,null,null,{"$f":"IFERROR(VLOOKUP(K68,Working!A:B,2,FALSE), \"\")","v":""}]
[null,null,null,null,null,null,null,null,null,null,null,{"$f":"IFERROR(VLOOKUP(K69,Working!A:B,2,FALSE), \"\")","v":""}]
[null,null,null,null,null,null,null,null,null,null,null,{"$f":"IFERROR(VLOOKUP(K70,Working!A:B,2,FALSE), \"\")","v":""}]
[null,null,null,null,null,null,null,null,null,null,null,{"$f":"IFERROR(VLOOKUP(K71,Working!A:B,2,FALSE), \"\")","v":""}]
[null,null,null,null,null,null,null,null,null,null,null,{"$f":"IFERROR(VLOOKUP(K72,Working!A:B,2,FALSE), \"\")","v":""}]
[null,null,null,null,null,null,null,null,null,null,null,{"$f":"IFERROR(VLOOKUP(K73,Working!A:B,2,FALSE), \"\")","v":""}]
[null,null,null,null,null,null,null,null,null,null,null,{"$f":"IFERROR(VLOOKUP(K74,Working!A:B,2,FALSE), \"\")","v":""}]
[null,null,null,null,null,null,null,null,null,null,null,{"$f":"IFERROR(VLOOKUP(K75,Working!A:B,2,FALSE), \"\")","v":""}]
[null,null,null,null,null,null,null,null,null,null,null,{"$f":"IFERROR(VLOOKUP(K76,Working!A:B,2,FALSE), \"\")","v":""}]
[null,null,null,null,null,null,null,null,null,null,null,{"$f":"IFERROR(VLOOKUP(K77,Working!A:B,2,FALSE), \"\")","v":""}]
[null,null,null,null,null,null,null,null,null,null,null,{"$f":"IFERROR(VLOOKUP(K78,Working!A:B,2,FALSE), \"\")","v":""}]
[null,null,null,null,null,null,null,null,null,null,null,{"$f":"IFERROR(VLOOKUP(K79,Working!A:B,2,FALSE), \"\")","v":""}]
[null,null,null,null,null,null,null,null,null,null,null,{"$f":"IFERROR(VLOOKUP(K80,Working!A:B,2,FALSE), \"\")","v":""}]
[null,null,null,null,null,null,null,null,null,null,null,{"$f":"IFERROR(VLOOKUP(K81,Working!A:B,2,FALSE), \"\")","v":""}]
[null,null,null,null,null,null,null,null,null,null,null,{"$f":"IFERROR(VLOOKUP(K82,Working!A:B,2,FALSE), \"\")","v":""}]
[null,null,null,null,null,null,null,null,null,null,null,{"$f":"IFERROR(VLOOKUP(K83,Working!A:B,2,FALSE), \"\")","v":""}]
[null,null,null,null,null,null,null,null,null,null,null,{"$f":"IFERROR(VLOOKUP(K84,Working!A:B,2,FALSE), \"\")","v":""}]
[null,null,null,null,null,null,null,null,null,null,null,{"$f":"IFERROR(VLOOKUP(K85,Working!A:B,2,FALSE), \"\")","v":""}]
[null,null,null,null,null,null,null,null,null,null,null,{"$f":"IFERROR(VLOOKUP(K86,Working!A:B,2,FALSE), \"\")","v":""}]
[null,null,null,null,null,null,null,null,null,null,null,{"$f":"IFERROR(VLOOKUP(K87,Working!A:B,2,FALSE), \"\")","v":""}]
[null,null,null,null,null,null,null,null,null,null,null,{"$f":"IFERROR(VLOOKUP(K88,Working!A:B,2,FALSE), \"\")","v":""}]
[null,null,null,null,null,null,null,null,null,null,null,{"$f":"IFERROR(VLOOKUP(K89,Working!A:B,2,FALSE), \"\")","v":""}]
[null,null,null,null,null,null,null,null,null,null,null,{"$f":"IFERROR(VLOOKUP(K90,Working!A:B,2,FALSE), \"\")","v":""}]
[null,null,null,null,null,null,null,null,null,null,null,{"$f":"IFERROR(VLOOKUP(K91,Working!A:B,2,FALSE), \"\")","v":""}]
[null,null,null,null,null,null,null,null,null,null,null,{"$f":"IFERROR(VLOOKUP(K92,Working!A:B,2,FALSE), \"\")","v":""}]
[null,null,null,null,null,null,null,null,null,null,null,{"$f":"IFERROR(VLOOKUP(K93,Working!A:B,2,FALSE), \"\")","v":""}]
[null,null,null,null,null,null,null,null,null,null,null,{"$f":"IFERROR(VLOOKUP(K94,Working!A:B,2,FALSE), \"\")","v":""}]
[null,null,null,null,null,null,null,null,null,null,null,{"$f":"IFERROR(VLOOKUP(K95,Working!A:B,2,FALSE), \"\")","v":""}]
[null,null,null,null,null,null,null,null,null,null,null,{"$f":"IFERROR(VLOOKUP(K96,Working!A:B,2,FALSE), \"\")","v":""}]
[null,null,null,null,null,null,null,null,null,null,null,{"$f":"IFERROR(VLOOKUP(K97,Working!A:B,2,FALSE), \"\")","v":""}]
[null,null,null,null,null,null,null,null,null,null,null,{"$f":"IFERROR(VLOOKUP(K98,Working!A:B,2,FALSE), \"\")","v":""}]
[null,null,null,null,null,null,null,null,null,null,null,{"$f":"IFERROR(VLOOKUP(K99,Working!A:B,2,FALSE), \"\")","v":""}]
[null,null,null,null,null,null,null,null,null,null,null,{"$f":"IFERROR(VLOOKUP(K100,Working!A:B,2,FALSE), \"\")","v":""}]
[null,null,null,null,null,null,null,null,null,null,null,{"$f":"IFERROR(VLOOKUP(K101,Working!A:B,2,FALSE), \"\")","v":""}]
[null,null,null,null,null,null,null,null,null,null,null,{"$f":"IFERROR(VLOOKUP(K102,Working!A:B,2,FALSE), \"\")","v":""}]
[null,null,null,null,null,null,null,null,null,null,null,{"$f":"IFERROR(VLOOKUP(K103,Working!A:B,2,FALSE), \"\")","v":""}]
[null,null,null,null,null,null,null,null,null,null,null,{"$f":"IFERROR(VLOOKUP(K104,Working!A:B,2,FALSE), \"\")","v":""}]
[null,null,null,null,null,null,null,null,null,null,null,{"$f":"IFERROR(VLOOKUP(K105,Working!A:B,2,FALSE), \"\")","v":""}]
[null,null,null,null,null,null,null,null,null,null,null,{"$f":"IFERROR(VLOOKUP(K106,Working!A:B,2,FALSE), \"\")","v":""}]
[null,null,null,null,null,null,null,null,null,null,null,{"$f":"IFERROR(VLOOKUP(K107,Working!A:B,2,FALSE), \"\")","v":""}]
[null,null,null,null,null,null,null,null,null,null,null,{"$f":"IFERROR(VLOOKUP(K108,Working!A:B,2,FALSE), \"\")","v":""}]
[null,null,null,null,null,null,null,null,null,null,null,{"$f":"IFERROR(VLOOKUP(K109,Working!A:B,2,FALSE), \"\")","v":""}]
[null,null,null,null,null,null,null,null,null,null,null,{"$f":"IFERROR(VLOOKUP(K110,Working!A:B,2,FALSE), \"\")","v":""}]
[null,null,null,null,null,null,null,null,null,null,null,{"$f":"IFERROR(VLOOKUP(K111,Working!A:B,2,FALSE), \"\")","v":""}]
[null,null,null,null,null,null,null,null,null,null,null,{"$f":"IFERROR(VLOOKUP(K112,Working!A:B,2,FALSE), \"\")","v":""}]
[null,null,null,null,null,null,null,null,null,null,null,{"$f":"IFERROR(VLOOKUP(K113,Working!A:B,2,FALSE), \"\")","v":""}]
[null,null,null,null,null,null,null,null,null,null,null,{"$f":"IFERROR(VLOOKUP(K114,Working!A:B,2,FALSE), \"\")","v":""}]
[null,null,null,null,null,null,null,null,null,null,null,{"$f":"IFERROR(VLOOKUP(K115,Working!A:B,2,FALSE), \"\")","v":""}]
[null,null,null,null,null,null,null,null,null,null,null,{"$f":"IFERROR(VLOOKUP(K116,Working!A:B,2,FALSE), \"\")","v":""}]
[null,null,null,null,null,null,null,null,null,null,null,{"$f":"IFERROR(VLOOKUP(K117,Working!A:B,2,FALSE), \"\")","v":""}]
[null,null,null,null,null,null,null,null,null,null,null,{"$f":"IFERROR(VLOOKUP(K118,Working!A:B,2,FALSE), \"\")","v":""}]
[null,null,null,null,null,null,null,null,null,null,null,{"$f":"IFERROR(VLOOKUP(K119,Working!A:B,2,FALSE), \"\")","v":""}]
[null,null,null,null,null,null,null,null,null,null,null,{"$f":"IFERROR(VLOOKUP(K120,Working!A:B,2,FALSE), \"\")","v":""}]
[null,null,null,null,null,null,null,null,null,null,null,{"$f":"IFERROR(VLOOKUP(K121,Working!A:B,2,FALSE), \"\")","v":""}]
[null,null,null,null,null,null,null,null,null,null,null,{"$f":"IFERROR(VLOOKUP(K122,Working!A:B,2,FALSE), \"\")","v":""}]
[null,null,null,null,null,null,null,null,null,null,null,{"$f":"IFERROR(VLOOKUP(K123,Working!A:B,2,FALSE), \"\")","v":""}]
[null,null,null,null,null,null,null,null,null,null,null,{"$f":"IFERROR(VLOOKUP(K124,Working!A:B,2,FALSE), \"\")","v":""}]
[null,null,null,null,null,null,null,null,null,null,null,{"$f":"IFERROR(VLOOKUP(K125,Working!A:B,2,FALSE), \"\")","v":""}]
[null,null,null,null,null,null,null,null,null,null,null,{"$f":"IFERROR(VLOOKUP(K126,Working!A:B,2,FALSE), \"\")","v":""}]
[null,null,null,null,null,null,null,null,null,null,null,{"$f":"IFERROR(VLOOKUP(K127,Working!A:B,2,FALSE), \"\")","v":""}]
[null,null,null,null,null,null,null,null,null,null,null,{"$f":"IFERROR(VLOOKUP(K128,Working!A:B,2,FALSE), \"\")","v":""}]
[null,null,null,null,null,null,null,null,null,null,null,{"$f":"IFERROR(VLOOKUP(K129,Working!A:B,2,FALSE), \"\")","v":""}]
[null,null,null,null,null,null,null,null,null,null,null,{"$f":"IFERROR(VLOOKUP(K130,Working!A:B,2,FALSE), \"\")","v":""}]
[null,null,null,null,null,null,null,null,null,null,null,{"$f":"IFERROR(VLOOKUP(K131,Working!A:B,2,FALSE), \"\")","v":""}]
[null,null,null,null,null,null,null,null,null,null,null,{"$f":"IFERROR(VLOOKUP(K132,Working!A:B,2,FALSE), \"\")","v":""}]
[null,null,null,null,null,null,null,null,null,null,null,{"$f":"IFERROR(VLOOKUP(K133,Working!A:B,2,FALSE), \"\")","v":""}]
[null,null,null,null,null,null,null,null,null,null,null,{"$f":"IFERROR(VLOOKUP(K134,Working!A:B,2,FALSE), \"\")","v":""}]
[null,null,null,null,null,null,null,null,null,null,null,{"$f":"IFERROR(VLOOKUP(K135,Working!A:B,2,FALSE), \"\")","v":""}]
[null,null,null,null,null,null,null,null,null,null,null,{"$f":"IFERROR(VLOOKUP(K136,Working!A:B,2,FALSE), \"\")","v":""}]
[null,null,null,null,null,null,null,null,null,null,null,{"$f":"IFERROR(VLOOKUP(K137,Working!A:B,2,FALSE), \"\")","v":""}]
[null,null,null,null,null,null,null,null,null,null,null,{"$f":"IFERROR(VLOOKUP(K138,Working!A:B,2,FALSE), \"\")","v":""}]
[null,null,null,null,null,null,null,null,null,null,null,{"$f":"IFERROR(VLOOKUP(K139,Working!A:B,2,FALSE), \"\")","v":""}]
[null,null,null,null,null,null,null,null,null,null,null,{"$f":"IFERROR(VLOOKUP(K140,Working!A:B,2,FALSE), \"\")","v":""}]
[null,null,null,null,null,null,null,null,null,null,null,{"$f":"IFERROR(VLOOKUP(K141,Working!A:B,2,FALSE), \"\")","v":""}]
[null,null,null,null,null,null,null,null,null,null,null,{"$f":"IFERROR(VLOOKUP(K142,Working!A:B,2,FALSE), \"\")","v":""}]
[null,null,null,null,null,null,null,null,null,null,null,{"$f":"IFERROR(VLOOKUP(K143,Working!A:B,2,FALSE), \"\")","v":""}]
[null,null,null,null,null,null,null,null,null,null,null,{"$f":"IFERROR(VLOOKUP(K144,Working!A:B,2,FALSE), \"\")","v":""}]
[null,null,null,null,null,null,null,null,null,null,null,{"$f":"IFERROR(VLOOKUP(K145,Working!A:B,2,FALSE), \"\")","v":""}]
[null,null,null,null,null,null,null,null,null,null,null,{"$f":"IFERROR(VLOOKUP(K146,Working!A:B,2,FALSE), \"\")","v":""}]
[null,null,null,null,null,null,null,null,null,null,null,{"$f":"IFERROR(VLOOKUP(K147,Working!A:B,2,FALSE), \"\")","v":""}]
[null,null,null,null,null,null,null,null,null,null,null,{"$f":"IFERROR(VLOOKUP(K148,Working!A:B,2,FALSE), \"\")","v":""}]
[null,null,null,null,null,null,null,null,null,null,null,{"$f":"IFERROR(VLOOKUP(K149,Working!A:B,2,FALSE), \"\")","v":""}]
[null,null,null,null,null,null,null,null,null,null,null,{"$f":"IFERROR(VLOOKUP(K150,Working!A:B,2,FALSE), \"\")","v":""}]
[null,null,null,null,null,null,null,null,null,null,null,{"$f":"IFERROR(VLOOKUP(K151,Working!A:B,2,FALSE), \"\")","v":""}]
[null,null,null,null,null,null,null,null,null,null,null,{"$f":"IFERROR(VLOOKUP(K152,Working!A:B,2,FALSE), \"\")","v":""}]
[null,null,null,null,null,null,null,null,null,null,null,{"$f":"IFERROR(VLOOKUP(K153,Working!A:B,2,FALSE), \"\")","v":""}]
[null,null,null,null,null,null,null,null,null,null,null,{"$f":"IFERROR(VLOOKUP(K154,Working!A:B,2,FALSE), \"\")","v":""}]
[null,null,null,null,null,null,null,null,null,null,null,{"$f":"IFERROR(VLOOKUP(K155,Working!A:B,2,FALSE), \"\")","v":""}]
[null,null,null,null,null,null,null,null,null,null,null,{"$f":"IFERROR(VLOOKUP(K156,Working!A:B,2,FALSE), \"\")","v":""}]
[null,null,null,null,null,null,null,null,null,null,null,{"$f":"IFERROR(VLOOKUP(K157,Working!A:B,2,FALSE), \"\")","v":""}]
[null,null,null,null,null,null,null,null,null,null,null,{"$f":"IFERROR(VLOOKUP(K158,Working!A:B,2,FALSE), \"\")","v":""}]
[null,null,null,null,null,null,null,null,null,null,null,{"$f":"IFERROR(VLOOKUP(K159,Working!A:B,2,FALSE), \"\")","v":""}]
[null,null,null,null,null,null,null,null,null,null,null,{"$f":"IFERROR(VLOOKUP(K160,Working!A:B,2,FALSE), \"\")","v":""}]
[null,null,null,null,null,null,null,null,null,null,null,{"$f":"IFERROR(VLOOKUP(K161,Working!A:B,2,FALSE), \"\")","v":""}]
[null,null,null,null,null,null,null,null,null,null,null,{"$f":"IFERROR(VLOOKUP(K162,Working!A:B,2,FALSE), \"\")","v":""}]
[null,null,null,null,null,null,null,null,null,null,null,{"$f":"IFERROR(VLOOKUP(K163,Working!A:B,2,FALSE), \"\")","v":""}]
[null,null,null,null,null,null,null,null,null,null,null,{"$f":"IFERROR(VLOOKUP(K164,Working!A:B,2,FALSE), \"\")","v":""}]
[null,null,null,null,null,null,null,null,null,null,null,{"$f":"IFERROR(VLOOKUP(K165,Working!A:B,2,FALSE), \"\")","v":""}]
[null,null,null,null,null,null,null,null,null,null,null,{"$f":"IFERROR(VLOOKUP(K166,Working!A:B,2,FALSE), \"\")","v":""}]
[null,null,null,null,null,null,null,null,null,null,null,{"$f":"IFERROR(VLOOKUP(K167,Working!A:B,2,FALSE), \"\")","v":""}]
[null,null,null,null,null,null,null,null,null,null,null,{"$f":"IFERROR(VLOOKUP(K168,Working!A:B,2,FALSE), \"\")","v":""}]
[]
[]
[]
[]
[]
[]
[]
[]
[]
[]
[null,null,null,null,null,null,null,null,null,null,null,{"$f":"IFERROR(VLOOKUP(K179,Working!A:B,2,FALSE), \"\")","v":""}]
[null,null,null,null,null,null,null,null,null,null,null,{"$f":"IFERROR(VLOOKUP(K180,Working!A:B,2,FALSE), \"\")","v":""}]
[null,null,null,null,null,null,null,null,null,null,null,{"$f":"IFERROR(VLOOKUP(K181,Working!A:B,2,FALSE), \"\")","v":""}]
[null,null,null,null,null,null,null,null,null,null,null,{"$f":"IFERROR(VLOOKUP(K182,Working!A:B,2,FALSE), \"\")","v":""}]
[null,null,null,null,null,null,null,null,null,null,null,{"$f":"IFERROR(VLOOKUP(K183,Working!A:B,2,FALSE), \"\")","v":""}]
[null,null,null,null,null,null,null,null,null,null,null,{"$f":"IFERROR(VLOOKUP(K184,Working!A:B,2,FALSE), \"\")","v":""}]
[null,null,null,null,null,null,null,null,null,null,null,{"$f":"IFERROR(VLOOKUP(K185,Working!A:B,2,FALSE), \"\")","v":""}]
[null,null,null,null,null,null,null,null,null,null,null,{"$f":"IFERROR(VLOOKUP(K186,Working!A:B,2,FALSE), \"\")","v":""}]
[null,null,null,null,null,null,null,null,null,null,null,{"$f":"IFERROR(VLOOKUP(K187,Working!A:B,2,FALSE), \"\")","v":""}]
[null,null,null,null,null,null,null,null,null,null,null,{"$f":"IFERROR(VLOOKUP(K188,Working!A:B,2,FALSE), \"\")","v":""}]
[null,null,null,null,null,null,null,null,null,null,null,{"$f":"IFERROR(VLOOKUP(K189,Working!A:B,2,FALSE), \"\")","v":""}]
[null,null,null,null,null,null,null,null,null,null,null,{"$f":"IFERROR(VLOOKUP(K190,Working!A:B,2,FALSE), \"\")","v":""}]
[null,null,null,null,null,null,null,null,null,null,null,{"$f":"IFERROR(VLOOKUP(K191,Working!A:B,2,FALSE), \"\")","v":""}]
[null,null,null,null,null,null,null,null,null,null,null,{"$f":"IFERROR(VLOOKUP(K192,Working!A:B,2,FALSE), \"\")","v":""}]
[null,null,null,null,null,null,null,null,null,null,null,{"$f":"IFERROR(VLOOKUP(K193,Working!A:B,2,FALSE), \"\")","v":""}]
[null,null,null,null,null,null,null,null,null,null,null,{"$f":"IFERROR(VLOOKUP(K194,Working!A:B,2,FALSE), \"\")","v":""}]
[null,null,null,null,null,null,null,null,null,null,null,{"$f":"IFERROR(VLOOKUP(K195,Working!A:B,2,FALSE), \"\")","v":""}]
[null,null,null,null,null,null,null,null,null,null,null,{"$f":"IFERROR(VLOOKUP(K196,Working!A:B,2,FALSE), \"\")","v":""}]
[null,null,null,null,null,null,null,null,null,null,null,{"$f":"IFERROR(VLOOKUP(K197,Working!A:B,2,FALSE), \"\")","v":""}]
[null,null,null,null,null,null,null,null,null,null,null,{"$f":"IFERROR(VLOOKUP(K198,Working!A:B,2,FALSE), \"\")","v":""}]
[null,null,null,null,null,null,null,null,null,null,null,{"$f":"IFERROR(VLOOKUP(K199,Working!A:B,2,FALSE), \"\")","v":""}]
[null,null,null,null,null,null,null,null,null,null,null,{"$f":"IFERROR(VLOOKUP(K200,Working!A:B,2,FALSE), \"\")","v":""}]
[null,null,null,null,null,null,null,null,null,null,null,{"$f":"IFERROR(VLOOKUP(K201,Working!A:B,2,FALSE), \"\")","v":""}]
[null,null,null,null,null,null,null,null,null,null,null,{"$f":"IFERROR(VLOOKUP(K202,Working!A:B,2,FALSE), \"\")","v":""}]
[null,null,null,null,null,null,null,null,null,null,null,{"$f":"IFERROR(VLOOKUP(K203,Working!A:B,2,FALSE), \"\")","v":""}]
[null,null,null,null,null,null,null,null,null,null,null,{"$f":"IFERROR(VLOOKUP(K204,Working!A:B,2,FALSE), \"\")","v":""}]
[null,null,null,null,null,null,null,null,null,null,null,{"$f":"IFERROR(VLOOKUP(K205,Working!A:B,2,FALSE), \"\")","v":""}]
[null,null,null,null,null,null,null,null,null,null,null,{"$f":"IFERROR(VLOOKUP(K206,Working!A:B,2,FALSE), \"\")","v":""}]
[null,null,null,null,null,null,null,null,null,null,null,{"$f":"IFERROR(VLOOKUP(K207,Working!A:B,2,FALSE), \"\")","v":""}]
[null,null,null,null,null,null,null,null,null,null,null,{"$f":"IFERROR(VLOOKUP(K208,Working!A:B,2,FALSE), \"\")","v":""}]
[null,null,null,null,null,null,null,null,null,null,null,{"$f":"IFERROR(VLOOKUP(K209,Working!A:B,2,FALSE), \"\")","v":""}]
[null,null,null,null,null,null,null,null,null,null,null,{"$f":"IFERROR(VLOOKUP(K210,Working!A:B,2,FALSE), \"\")","v":""}]
[null,null,null,null,null,null,null,null,null,null,null,{"$f":"IFERROR(VLOOKUP(K211,Working!A:B,2,FALSE), \"\")","v":""}]
[null,null,null,null,null,null,null,null,null,null,null,{"$f":"IFERROR(VLOOKUP(K212,Working!A:B,2,FALSE), \"\")","v":""}]
[null,null,null,null,null,null,null,null,null,null,null,{"$f":"IFERROR(VLOOKUP(K213,Working!A:B,2,FALSE), \"\")","v":""}]
[null,null,null,null,null,null,null,null,null,null,null,{"$f":"IFERROR(VLOOKUP(K214,Working!A:B,2,FALSE), \"\")","v":""}]
[null,null,null,null,null,null,null,null,null,null,null,{"$f":"IFERROR(VLOOKUP(K215,Working!A:B,2,FALSE), \"\")","v":""}]
[null,null,null,null,null,null,null,null,null,null,null,{"$f":"IFERROR(VLOOKUP(K216,Working!A:B,2,FALSE), \"\")","v":""}]
[null,null,null,null,null,null,null,null,null,null,null,{"$f":"IFERROR(VLOOKUP(K217,Working!A:B,2,FALSE), \"\")","v":""}]
[null,null,null,null,null,null,null,null,null,null,null,{"$f":"IFERROR(VLOOKUP(K218,Working!A:B,2,FALSE), \"\")","v":""}]
[null,null,null,null,null,null,null,null,null,null,null,{"$f":"IFERROR(VLOOKUP(K219,Working!A:B,2,FALSE), \"\")","v":""}]
[null,null,null,null,null,null,null,null,null,null,null,{"$f":"IFERROR(VLOOKUP(K220,Working!A:B,2,FALSE), \"\")","v":""}]
[null,null,null,null,null,null,null,null,null,null,null,{"$f":"IFERROR(VLOOKUP(K221,Working!A:B,2,FALSE), \"\")","v":""}]
[null,null,null,null,null,null,null,null,null,null,null,{"$f":"IFERROR(VLOOKUP(K222,Working!A:B,2,FALSE), \"\")","v":""}]
[null,null,null,null,null,null,null,null,null,null,null,{"$f":"IFERROR(VLOOKUP(K223,Working!A:B,2,FALSE), \"\")","v":""}]
[null,null,null,null,null,null,null,null,null,null,null,{"$f":"IFERROR(VLOOKUP(K224,Working!A:B,2,FALSE), \"\")","v":""}]
[null,null,null,null,null,null,null,null,null,null,null,{"$f":"IFERROR(VLOOKUP(K225,Working!A:B,2,FALSE), \"\")","v":""}]
[null,null,null,null,null,null,null,null,null,null,null,{"$f":"IFERROR(VLOOKUP(K226,Working!A:B,2,FALSE), \"\")","v":""}]
[null,null,null,null,null,null,null,null,null,null,null,{"$f":"IFERROR(VLOOKUP(K227,Working!A:B,2,FALSE), \"\")","v":""}]
[null,null,null,null,null,null,null,null,null,null,null,{"$f":"IFERROR(VLOOKUP(K228,Working!A:B,2,FALSE), \"\")","v":""}]
[null,null,null,null,null,null,null,null,null,null,null,{"$f":"IFERROR(VLOOKUP(K229,Working!A:B,2,FALSE), \"\")","v":""}]
[null,null,null,null,null,null,null,null,null,null,null,{"$f":"IFERROR(VLOOKUP(K230,Working!A:B,2,FALSE), \"\")","v":""}]
[null,null,null,null,null,null,null,null,null,null,null,{"$f":"IFERROR(VLOOKUP(K231,Working!A:B,2,FALSE), \"\")","v":""}]
[null,null,null,null,null,null,null,null,null,null,null,{"$f":"IFERROR(VLOOKUP(K232,Working!A:B,2,FALSE), \"\")","v":""}]
[null,null,null,null,null,null,null,null,null,null,null,{"$f":"IFERROR(VLOOKUP(K233,Working!A:B,2,FALSE), \"\")","v":""}]
[null,null,null,null,null,null,null,null,null,null,null,{"$f":"IFERROR(VLOOKUP(K234,Working!A:B,2,FALSE), \"\")","v":""}]
[null,null,null,null,null,null,null,null,null,null,null,{"$f":"IFERROR(VLOOKUP(K235,Working!A:B,2,FALSE), \"\")","v":""}]
[null,null,null,null,null,null,null,null,null,null,null,{"$f":"IFERROR(VLOOKUP(K236,Working!A:B,2,FALSE), \"\")","v":""}]
[null,null,null,null,null,null,null,null,null,null,null,{"$f":"IFERROR(VLOOKUP(K237,Working!A:B,2,FALSE), \"\")","v":""}]
[null,null,null,null,null,null,null,null,null,null,null,{"$f":"IFERROR(VLOOKUP(K238,Working!A:B,2,FALSE), \"\")","v":""}]
[null,null,null,null,null,null,null,null,null,null,null,{"$f":"IFERROR(VLOOKUP(K239,Working!A:B,2,FALSE), \"\")","v":""}]
[null,null,null,null,null,null,null,null,null,null,null,{"$f":"IFERROR(VLOOKUP(K240,Working!A:B,2,FALSE), \"\")","v":""}]
[null,null,null,null,null,null,null,null,null,null,null,{"$f":"IFERROR(VLOOKUP(K241,Working!A:B,2,FALSE), \"\")","v":""}]
[null,null,null,null,null,null,null,null,null,null,null,{"$f":"IFERROR(VLOOKUP(K242,Working!A:B,2,FALSE), \"\")","v":""}]
[null,null,null,null,null,null,null,null,null,null,null,{"$f":"IFERROR(VLOOKUP(K243,Working!A:B,2,FALSE), \"\")","v":""}]
[null,null,null,null,null,null,null,null,null,null,null,{"$f":"IFERROR(VLOOKUP(K244,Working!A:B,2,FALSE), \"\")","v":""}]
[null,null,null,null,null,null,null,null,null,null,null,{"$f":"IFERROR(VLOOKUP(K245,Working!A:B,2,FALSE), \"\")","v":""}]
[null,null,null,null,null,null,null,null,null,null,null,{"$f":"IFERROR(VLOOKUP(K246,Working!A:B,2,FALSE), \"\")","v":""}]
[null,null,null,null,null,null,null,null,null,null,null,{"$f":"IFERROR(VLOOKUP(K247,Working!A:B,2,FALSE), \"\")","v":""}]
[null,null,null,null,null,null,null,null,null,null,null,{"$f":"IFERROR(VLOOKUP(K248,Working!A:B,2,FALSE), \"\")","v":""}]
[null,null,null,null,null,null,null,null,null,null,null,{"$f":"IFERROR(VLOOKUP(K249,Working!A:B,2,FALSE), \"\")","v":""}]
[null,null,null,null,null,null,null,null,null,null,null,{"$f":"IFERROR(VLOOKUP(K250,Working!A:B,2,FALSE), \"\")","v":""}]
[null,null,null,null,null,null,null,null,null,null,null,{"$f":"IFERROR(VLOOKUP(K251,Working!A:B,2,FALSE), \"\")","v":""}]
[null,null,null,null,null,null,null,null,null,null,null,{"$f":"IFERROR(VLOOKUP(K252,Working!A:B,2,FALSE), \"\")","v":""}]
[null,null,null,null,null,null,null,null,null,null,null,{"$f":"IFERROR(VLOOKUP(K253,Working!A:B,2,FALSE), \"\")","v":""}]
[null,null,null,null,null,null,null,null,null,null,null,{"$f":"IFERROR(VLOOKUP(K254,Working!A:B,2,FALSE), \"\")","v":""}]
[null,null,null,null,null,null,null,null,null,null,null,{"$f":"IFERROR(VLOOKUP(K255,Working!A:B,2,FALSE), \"\")","v":""}]
[null,null,null,null,null,null,null,null,null,null,null,{"$f":"IFERROR(VLOOKUP(K256,Working!A:B,2,FALSE), \"\")","v":""}]
[null,null,null,null,null,null,null,null,null,null,null,{"$f":"IFERROR(VLOOKUP(K257,Working!A:B,2,FALSE), \"\")","v":""}]
[null,null,null,null,null,null,null,null,null,null,null,{"$f":"IFERROR(VLOOKUP(K258,Working!A:B,2,FALSE), \"\")","v":""}]
[null,null,null,null,null,null,null,null,null,null,null,{"$f":"IFERROR(VLOOKUP(K259,Working!A:B,2,FALSE), \"\")","v":""}]
[null,null,null,null,null,null,null,null,null,null,null,{"$f":"IFERROR(VLOOKUP(K260,Working!A:B,2,FALSE), \"\")","v":""}]
[null,null,null,null,null,null,null,null,null,null,null,{"$f":"IFERROR(VLOOKUP(K261,Working!A:B,2,FALSE), \"\")","v":""}]
[null,null,null,null,null,null,null,null,null,null,null,{"$f":"IFERROR(VLOOKUP(K262,Working!A:B,2,FALSE), \"\")","v":""}]
[null,null,null,null,null,null,null,null,null,null,null,{"$f":"IFERROR(VLOOKUP(K263,Working!A:B,2,FALSE), \"\")","v":""}]
[null,null,null,null,null,null,null,null,null,null,null,{"$f":"IFERROR(VLOOKUP(K264,Working!A:B,2,FALSE), \"\")","v":""}]
[null,null,null,null,null,null,null,null,null,null,null,{"$f":"IFERROR(VLOOKUP(K265,Working!A:B,2,FALSE), \"\")","v":""}]
[null,null,null,null,null,null,null,null,null,null,null,{"$f":"IFERROR(VLOOKUP(K266,Working!A:B,2,FALSE), \"\")","v":""}]
[null,null,null,null,null,null,null,null,null,null,null,{"$f":"IFERROR(VLOOKUP(K267,Working!A:B,2,FALSE), \"\")","v":""}]
[null,null,null,null,null,null,null,null,null,null,null,{"$f":"IFERROR(VLOOKUP(K268,Working!A:B,2,FALSE), \"\")","v":""}]
[null,null,null,null,null,null,null,null,null,null,null,{"$f":"IFERROR(VLOOKUP(K269,Working!A:B,2,FALSE), \"\")","v":""}]
[null,null,null,null,null,null,null,null,null,null,null,{"$f":"IFERROR(VLOOKUP(K270,Working!A:B,2,FALSE), \"\")","v":""}]
[null,null,null,null,null,null,null,null,null,null,null,{"$f":"IFERROR(VLOOKUP(K271,Working!A:B,2,FALSE), \"\")","v":""}]
[null,null,null,null,null,null,null,null,null,null,null,{"$f":"IFERROR(VLOOKUP(K272,Working!A:B,2,FALSE), \"\")","v":""}]
[null,null,null,null,null,null,null,null,null,null,null,{"$f":"IFERROR(VLOOKUP(K273,Working!A:B,2,FALSE), \"\")","v":""}]
[null,null,null,null,null,null,null,null,null,null,null,{"$f":"IFERROR(VLOOKUP(K274,Working!A:B,2,FALSE), \"\")","v":""}]
[null,null,null,null,null,null,null,null,null,null,null,{"$f":"IFERROR(VLOOKUP(K275,Working!A:B,2,FALSE), \"\")","v":""}]
[null,null,null,null,null,null,null,null,null,null,null,{"$f":"IFERROR(VLOOKUP(K276,Working!A:B,2,FALSE), \"\")","v":""}]
[null,null,null,null,null,null,null,null,null,null,null,{"$f":"IFERROR(VLOOKUP(K277,Working!A:B,2,FALSE), \"\")","v":""}]
[null,null,null,null,null,null,null,null,null,null,null,{"$f":"IFERROR(VLOOKUP(K278,Working!A:B,2,FALSE), \"\")","v":""}]
[null,null,null,null,null,null,null,null,null,null,null,{"$f":"IFERROR(VLOOKUP(K279,Working!A:B,2,FALSE), \"\")","v":""}]
[null,null,null,null,null,null,null,null,null,null,null,{"$f":"IFERROR(VLOOKUP(K280,Working!A:B,2,FALSE), \"\")","v":""}]
[null,null,null,null,null,null,null,null,null,null,null,{"$f":"IFERROR(VLOOKUP(K281,Working!A:B,2,FALSE), \"\")","v":""}]
[null,null,null,null,null,null,null,null,null,null,null,{"$f":"IFERROR(VLOOKUP(K282,Working!A:B,2,FALSE), \"\")","v":""}]
[null,null,null,null,null,null,null,null,null,null,null,{"$f":"IFERROR(VLOOKUP(K283,Working!A:B,2,FALSE), \"\")","v":""}]
[null,null,null,null,null,null,null,null,null,null,null,{"$f":"IFERROR(VLOOKUP(K284,Working!A:B,2,FALSE), \"\")","v":""}]
[null,null,null,null,null,null,null,null,null,null,null,{"$f":"IFERROR(VLOOKUP(K285,Working!A:B,2,FALSE), \"\")","v":""}]
[null,null,null,null,null,null,null,null,null,null,null,{"$f":"IFERROR(VLOOKUP(K286,Working!A:B,2,FALSE), \"\")","v":""}]
[null,null,null,null,null,null,null,null,null,null,null,{"$f":"IFERROR(VLOOKUP(K287,Working!A:B,2,FALSE), \"\")","v":""}]
[null,null,null,null,null,null,null,null,null,null,null,{"$f":"IFERROR(VLOOKUP(K288,Working!A:B,2,FALSE), \"\")","v":""}]
[null,null,null,null,null,null,null,null,null,null,null,{"$f":"IFERROR(VLOOKUP(K289,Working!A:B,2,FALSE), \"\")","v":""}]
[null,null,null,null,null,null,null,null,null,null,null,{"$f":"IFERROR(VLOOKUP(K290,Working!A:B,2,FALSE), \"\")","v":""}]
[null,null,null,null,null,null,null,null,null,null,null,{"$f":"IFERROR(VLOOKUP(K291,Working!A:B,2,FALSE), \"\")","v":""}]
[null,null,null,null,null,null,null,null,null,null,null,{"$f":"IFERROR(VLOOKUP(K292,Working!A:B,2,FALSE), \"\")","v":""}]
[null,null,null,null,null,null,null,null,null,null,null,{"$f":"IFERROR(VLOOKUP(K293,Working!A:B,2,FALSE), \"\")","v":""}]
[null,null,null,null,null,null,null,null,null,null,null,{"$f":"IFERROR(VLOOKUP(K294,Working!A:B,2,FALSE), \"\")","v":""}]
[null,null,null,null,null,null,null,null,null,null,null,{"$f":"IFERROR(VLOOKUP(K295,Working!A:B,2,FALSE), \"\")","v":""}]
[null,null,null,null,null,null,null,null,null,null,null,{"$f":"IFERROR(VLOOKUP(K296,Working!A:B,2,FALSE), \"\")","v":""}]
[null,null,null,null,null,null,null,null,null,null,null,{"$f":"IFERROR(VLOOKUP(K297,Working!A:B,2,FALSE), \"\")","v":""}]
[null,null,null,null,null,null,null,null,null,null,null,{"$f":"IFERROR(VLOOKUP(K298,Working!A:B,2,FALSE), \"\")","v":""}]
[null,null,null,null,null,null,null,null,null,null,null,{"$f":"IFERROR(VLOOKUP(K299,Working!A:B,2,FALSE), \"\")","v":""}]
[null,null,null,null,null,null,null,null,null,null,null,{"$f":"IFERROR(VLOOKUP(K300,Working!A:B,2,FALSE), \"\")","v":""}]
[null,null,null,null,null,null,null,null,null,null,null,{"$f":"IFERROR(VLOOKUP(K301,Working!A:B,2,FALSE), \"\")","v":""}]
[null,null,null,null,null,null,null,null,null,null,null,{"$f":"IFERROR(VLOOKUP(K302,Working!A:B,2,FALSE), \"\")","v":""}]
[null,null,null,null,null,null,null,null,null,null,null,{"$f":"IFERROR(VLOOKUP(K303,Working!A:B,2,FALSE), \"\")","v":""}]
[null,null,null,null,null,null,null,null,null,null,null,{"$f":"IFERROR(VLOOKUP(K304,Working!A:B,2,FALSE), \"\")","v":""}]
[null,null,null,null,null,null,null,null,null,null,null,{"$f":"IFERROR(VLOOKUP(K305,Working!A:B,2,FALSE), \"\")","v":""}]
[null,null,null,null,null,null,null,null,null,null,null,{"$f":"IFERROR(VLOOKUP(K306,Working!A:B,2,FALSE), \"\")","v":""}]
[null,null,null,null,null,null,null,null,null,null,null,{"$f":"IFERROR(VLOOKUP(K307,Working!A:B,2,FALSE), \"\")","v":""}]
[null,null,null,null,null,null,null,null,null,null,null,{"$f":"IFERROR(VLOOKUP(K308,Working!A:B,2,FALSE), \"\")","v":""}]
[null,null,null,null,null,null,null,null,null,null,null,{"$f":"IFERROR(VLOOKUP(K309,Working!A:B,2,FALSE), \"\")","v":""}]
[null,null,null,null,null,null,null,null,null,null,null,{"$f":"IFERROR(VLOOKUP(K310,Working!A:B,2,FALSE), \"\")","v":""}]
[null,null,null,null,null,null,null,null,null,null,null,{"$f":"IFERROR(VLOOKUP(K311,Working!A:B,2,FALSE), \"\")","v":""}]
[null,null,null,null,null,null,null,null,null,null,null,{"$f":"IFERROR(VLOOKUP(K312,Working!A:B,2,FALSE), \"\")","v":""}]
[null,null,null,null,null,null,null,null,null,null,null,{"$f":"IFERROR(VLOOKUP(K313,Working!A:B,2,FALSE), \"\")","v":""}]
[null,null,null,null,null,null,null,null,null,null,null,{"$f":"IFERROR(VLOOKUP(K314,Working!A:B,2,FALSE), \"\")","v":""}]
[null,null,null,null,null,null,null,null,null,null,null,{"$f":"IFERROR(VLOOKUP(K315,Working!A:B,2,FALSE), \"\")","v":""}]
[null,null,null,null,null,null,null,null,null,null,null,{"$f":"IFERROR(VLOOKUP(K316,Working!A:B,2,FALSE), \"\")","v":""}]
[null,null,null,null,null,null,null,null,null,null,null,{"$f":"IFERROR(VLOOKUP(K317,Working!A:B,2,FALSE), \"\")","v":""}]
[null,null,null,null,null,null,null,null,null,null,null,{"$f":"IFERROR(VLOOKUP(K318,Working!A:B,2,FALSE), \"\")","v":""}]
[null,null,null,null,null,null,null,null,null,null,null,{"$f":"IFERROR(VLOOKUP(K319,Working!A:B,2,FALSE), \"\")","v":""}]
[null,null,null,null,null,null,null,null,null,null,null,{"$f":"IFERROR(VLOOKUP(K320,Working!A:B,2,FALSE), \"\")","v":""}]
[null,null,null,null,null,null,null,null,null,null,null,{"$f":"IFERROR(VLOOKUP(K321,Working!A:B,2,FALSE), \"\")","v":""}]
[null,null,null,null,null,null,null,null,null,null,null,{"$f":"IFERROR(VLOOKUP(K322,Working!A:B,2,FALSE), \"\")","v":""}]

{"sheet":"Working","index":2,"n_rows":56,"n_cols":9,"rows_kept":56,"cut":false,"hidden":true,"merged":[]}
["Elements","Itrent Codes","Element Name (JAYS LIST)","Standby Type","Code","Grades","SCP"]
["Additional Basic","020","Additional Basic","Standby single day (M-F)",10]
["Basic Pay Hours (Supply Teacher)","002","Additional Hours JS and PT","Standby Saturday",20,null,19]
["Call Out Overtime Double","048","Basic Pay Hours","Standby Sunday/ PH",30,3,20]
["Call Out Overtime Time and Half","047","Call Out Overtime Double","Standby Full Week (337)",40,4,21]
["Casual Hours ","021","Call Out Overtime Time and Half",null,null,5,22]
["Leisure Officer Upgrade",339,"Casual Hours Non Pen (REMOVED FROM EDC LIST)",null,null,6,23]
["Out of Hours Non Contractual","022","Casual Hours Pen (REMOVED FROM EDC LIST)",null,null,7,24]
["Overtime Double","015","Education Trip",null,null,8,25]
["Overtime Time and Half","003","Home Tuition Fees",null,null,9,26]
["Public Holiday","025","Keeping in Touch (REMOVED FROM EDC LIST)",null,null,10,27]
["Sleeping in Allowance","353","Leisure Officer Upgrade",null,null,null,28,null,"339"]
["Standby Allowance","337","On Call Duties",null,null,null,29]
["Additional Hours Job Share and Part Time","081","Out of Hours Non Contractual",null,null,null,30]
["Home Tuition Fees","371","Out of Hours Non Pen",null,null,null,32]
["Positive Alter","419","Overtime Double",null,null,null,33]
["School Board Fee","390","Overtime Plain (REMOVED FROM EDC LIST)",null,null,null,34]
["Supported Study","374","Overtime Time and Half",null,null,null,35]
["Twilight Class Fee","385","Positive Alter",null,null,null,36]
[null,null,"Public Holiday",null,null,null,37]
[null,null,"Residential Allowance",null,null,null,38]
[null,null,"School Board Fee",null,null,null,39]
[null,null,"Sleeping in Allowance",null,null,null,40]
[null,null,"Standby Allowance",null,null,null,41]
[null,null,"Supported Study",null,null,null,42]
[null,null,"Twilight Class Fee",null,null,null,43]
[null,null,null,null,null,null,44]
[null,null,null,null,null,null,45]
[null,null,null,null,null,null,46]
[null,null,null,null,null,null,47]
[null,null,null,null,null,null,48]
[null,null,null,null,null,null,49]
[null,null,null,null,null,null,50]
[null,null,null,null,null,null,51]
[null,null,null,null,null,null,52]
[null,null,null,null,null,null,53]
[null,null,null,null,null,null,54]
[null,null,null,null,null,null,55]
[null,null,null,null,null,null,56]
[null,null,null,null,null,null,57]
[null,null,null,null,null,null,58]
[null,null,null,null,null,null,59]
[null,null,null,null,null,null,60]
[null,null,null,null,null,null,61]
[null,null,null,null,null,null,62]
[null,null,null,null,null,null,63]
[null,null,null,null,null,null,64]
[null,null,null,null,null,null,65]
[null,null,null,null,null,null,66]
[null,null,null,null,null,null,67]
[null,null,null,null,null,null,68]
[null,null,null,null,null,null,69]
[null,null,null,null,null,null,70]
[null,null,null,null,null,null,71]
[null,null,null,null,null,null,72]
[null,null,null,null,null,null,73]